Cogmind - Beta 17 @@@ ROGUE MODE // 2026.08.19 @ 12:13:15 Player: TheSkyeDoctor Result: Destroyed by P-70 Sage with Tesla Rifle Performance ------------- Evolutions (5) 2500 Regions Visited (6) 1200 Robots Destroyed (37) 185 Value Destroyed (1430) 1430 Prototype IDs (7) 140 Alien Tech Used (0) 0 Bonus (800) 800 TOTAL SCORE: 6255 Bonus ------- Registered with UFD 300 Met Optimus in HQ 500 Cogmind --------- Core Integrity 0/1000 Matter 300/300 Energy 98/100 System Corruption 0% Temperature Cool (0) Movement Core (50) Location -5/Upper Caves Parts ------- > --- POWER (2) -------- (None) > --- PROPULSION (4) --- Improved Titanium Leg > --- UTILITY (7) ------ Advanced Signal Interpreter Experimental Terrain Scan Processor Advanced Targeting Computer Core Analyzer System Guard > --- WEAPON (4) ------- (None) > --- INVENTORY (5) ---- Scrap Suit Energy Well (350) KE Penetrator Long-range Missile Launcher Peak State ------------ > --- POWER ------------ Deuterium Engine Neutrino Core > --- PROPULSION ------- Light Treads Light Treads Medium Treads Wheel > --- UTILITY ---------- High-capacity Storage Unit Improved Terrain Scanner Experimental Terrain Scan Processor Seismic Detector Advanced Targeting Computer Improved Heavy Armor Plating > --- WEAPON ----------- Plasma Rifle Gauss Rifle Antimatter Cannon Great Maul > --- INVENTORY -------- Scrap Suit Cryofiber Web Energy Well Advanced Sensor Array Improved Light Armor Plating Improved Light Armor Plating System Guard Battle Rifle Flak Gun Gauss Cannon Rocket Launcher Long-range Missile Launcher Plasma Cutter [Rating: 65] Favorites ----------- Power Deuterium Engine Engine Deuterium Engine Power Core Neutrino Core Propulsion Light Treads Treads Light Treads Leg Improved Titanium Leg Wheel Wheel Utility Seismic Detector Device Seismic Detector Storage High-capacity Storage Unit Processor Experimental Terrain Scan Processor Hackware Advanced Hacking Suite Protection Improved Heavy Armor Plating Weapon Gauss Rifle Energy Gun Plasma Rifle Energy Cannon Advanced Plasma Cannon Ballistic Gun Gauss Rifle Ballistic Cannon Antimatter Cannon Launcher Rocket Launcher Impact Weapon Great Maul Build | -11 -10 -10 -8 -6 -5 -5 ------- Run | Yrd Mat Sub Scr Fac Fac Upp Slots Evolved 10 | . . . . 8 2 . Power 1 | . . . . 1 . . Propulsion 2 | . . . . 2 . . Utility 5 | . . . . 3 2 . Weapon 2 | . . . . 2 . . Parts Attached 42 | 6 2 . 4 14 15 1 Power 5 | 1 . . 1 1 2 . Engine 3 | 1 . . 1 . 1 . Core 2 | . . . . 1 1 . Reactor . | . . . . . . . Propulsion 6 | 2 1 . . 2 . 1 Treads 3 | 2 . . . 1 . . Leg 1 | . . . . . . 1 Wheel 2 | . 1 . . 1 . . Hover . | . . . . . . . Flight . | . . . . . . . Utility 19 | 1 1 . 1 6 10 . Device 8 | . 1 . . 4 3 . Storage 2 | 1 . . 1 . . . Processor 5 | . . . . 2 3 . Hackware 1 | . . . . . 1 . Protection 3 | . . . . . 3 . Artifact . | . . . . . . . Weapon 12 | 2 . . 2 5 3 . Energy Gun 2 | 1 . . . 1 . . Energy Cannon 1 | . . . . . 1 . Ballistic Gun 5 | 1 . . 2 2 . . Ballistic Cannon 2 | . . . . 1 1 . Launcher 1 | . . . . . 1 . Special Weapon . | . . . . . . . Impact Weapon 1 | . . . . 1 . . Slashing Weapon . | . . . . . . . Piercing Weapon . | . . . . . . . Special Melee Weapon . | . . . . . . . Unidentified Prototypes 1 | . . . . 1 . . Parts Lost 24 | . . . . 5 19 . Power 3 | . . . . 1 2 . Propulsion 5 | . . . . 1 4 . Utility 9 | . . . . 2 7 . Weapon 7 | . . . . 1 6 . Highest Loss Streak 7 | . . . . 3 7 . To Critical Strikes 1 | . . . . . 1 . Average Backups 11 | 2 3 3 13 11 12 4 Power . | . 1 1 . . . . Propulsion 1 | . 1 1 2 1 . . Utility 5 | . 1 1 5 5 6 2 Weapon 3 | . . . 3 4 4 2 Tool/Special . | . . . . . . . Unused Backups 12 | . . . 4 . 4 4 Power 1 | . . . 1 . . . Propulsion 1 | . . . 1 . . . Utility 5 | . . . 2 . 1 2 Weapon 4 | . . . . . 2 2 Tool/Special 1 | . . . . . 1 . Average Slot Usage (%) 89 | . 100 100 99 89 78 34 Engine 9 | . 14 14 14 6 6 . Core 1 | . . . . 2 2 . Treads 12 | . 16 14 14 14 8 . Wheel 8 | . 11 14 14 6 4 . Device 13 | . 14 14 14 18 9 . Storage 9 | . 14 14 14 6 4 . Processor 6 | . . . . 7 12 29 Protection 1 | . . . . . 4 . Energy Gun 3 | . 14 14 . 3 2 . Ballistic Gun 15 | . 14 14 26 11 6 . Ballistic Cannon 2 | . . . . 5 3 . Impact Weapon 1 | . . . . 3 3 . Peak Build Rating 65 | 6 7 7 20 60 65 31 Average Rating 35 | 4 7 7 16 54 56 30 On Entrance 16 | . 6 7 7 20 50 27 Avg Prop Armor Cover (%) 11 | . 12 12 11 11 8 28 Naked Turns . | . . . . . . . Heaviest Build 100 | 14 15 15 56 86 100 . Greatest Support 68 | 40 10 10 10 68 68 20 Greatest Overweight (x) 9 | . 1 1 5 3 9 . Average Overweight (x) 3 | . 1 1 3 1 5 . Largest Inventory Capacity 20 | 8 8 8 20 20 20 5 Average Capacity 17 | 7 8 8 17 20 18 5 Most Carried 20 | 4 3 3 20 19 17 5 Average Carried 12 | 2 3 3 15 13 13 5 Final Capacity 20 | 8 8 8 20 20 5 5 Final Carried 20 | 4 3 3 20 16 5 5 Class Distribution -------------------- 52% | Mutant 46% | Skirmisher Dominant Class ---------------- Mutant | -10/Materials Mutant | -10/Subcaves Mutant | -8/Scraptown Skirmisher | -6/Factory Skirmisher | -5/Factory Mutant | -5/Upper Caves Resources | -11 -10 -10 -8 -6 -5 -5 ----------- Run | Yrd Mat Sub Scr Fac Fac Upp Matter Collected 1293 | 293 . . 66 396 463 75 Remotely . | . . . . . . . Salvage Created 1249 | 110 . . . 458 681 . Parts 72 | 8 . . . 17 47 . Haulers Intercepted . | . . . . . . . Recyclers Shooed . | . . . . . . . Parts Field Recycled . | . . . . . . . Retrieved Matter . | . . . . . . . Parts Self-Destructed . | . . . . . . . Prevented . | . . . . . . . Parts Restored . | . . . . . . . Kills | -11 -10 -10 -8 -6 -5 -5 ------- Run | Yrd Mat Sub Scr Fac Fac Upp Combat Hostiles Destroyed 27 | . . . . 8 19 . Guns 8 | . . . . 2 6 . Cannons 9 | . . . . 3 6 . AOE 10 | . . . . 3 7 . Classes Destroyed 10 | 2 . . . 5 3 . Worker 2 | . . . . 1 1 . Tunneler 3 | 3 . . . . . . Recycler 2 | 1 . . . . 1 . Watcher 3 | . . . . 2 1 . Swarmer 10 | . . . . . 10 . Grunt 10 | . . . . 5 5 . Duelist 1 | . . . . . 1 . Sentry 1 | . . . . 1 . . Hunter 2 | . . . . 2 . . Programmer 3 | . . . . . 3 . Best Kill Streak 5 | 3 . . . 3 5 . Combat Bots Only 5 | . . . . 2 5 . Max Kills in Single Turn 5 | 1 . . . 2 5 . Gunslinging . | . . . . . . . Exploded 5 | . . . . 2 5 . Melee . | . . . . . . . Uniques/NPCs Destroyed . | . . . . . . . Combat | -11 -10 -10 -8 -6 -5 -5 -------- Run | Yrd Mat Sub Scr Fac Fac Upp Hostile Shots Fired 324 | . . 1 . 115 203 5 Missed 95 | . . 1 . 39 53 2 Hits 229 | . . . . 76 150 3 Projectile 229 | . . . . 76 150 3 Critical Strikes 6 | . . . . 1 5 . Damage Taken 4096 | . . . . 1278 2759 59 Core 1155 | . . . . 152 944 59 Absorbed by Shields 253 | . . . . 253 . . Regen/Repaired (Parts) 324 | . . . 324 . . . Core Remaining (%) 94 | 100 . . 100 82 . . Volleys Fired 97 | 11 . 2 . 31 53 . Largest 4 | 2 . 2 . 4 4 . Hottest 198 | 70 . 70 . 136 198 . Shots Fired 211 | 22 . 4 . 84 101 . Gun 133 | 22 . 4 . 62 45 . Cannon 70 | . . . . 22 48 . Launcher 8 | . . . . . 8 . Special . | . . . . . . . Kinetic 132 | 11 . 2 . 64 55 . Thermal 71 | 11 . 2 . 20 38 . Explosive 8 | . . . . . 8 . Electromagnetic . | . . . . . . . Robot Hit Streak 8 | 5 . . . 8 8 . Robot Miss Streak 5 | 5 . . . 3 3 . Penetration Max 1 | . . . . 1 1 . Secondary Targets 1 | . . . . . 1 . Max Gunslinging Chain 1 | . . . . . 1 . Shots Hit Robots 108 | 10 . . . 44 54 . Core Hits 71 | 4 . . . 24 43 . Critical Kills . | . . . . . . . Critical Parts Destroyed 2 | . . . . 2 . . Critical Strikes 8 | . . . . 4 4 . Burn 3 | . . . . 1 2 . Destroy 2 | . . . . 2 . . Blast 3 | . . . . 1 2 . Melee Attacks 15 | . . . . 15 . . Impact 15 | . . . . 15 . . Slashing . | . . . . . . . Piercing . | . . . . . . . Sneak Attacks . | . . . . . . . Combat Hostiles . | . . . . . . . Follow-up Attacks . | . . . . . . . Damage Inflicted 4105 | 142 . . . 1406 2557 . Guns 1397 | 142 . . . 751 504 . Cannons 1343 | . . . . 268 1075 . Explosions 1365 | . . . . 387 978 . Melee . | . . . . . . . Ramming . | . . . . . . . Kinetic 1634 | 79 . . . 712 843 . Thermal 1224 | 63 . . . 425 736 . Explosive 1247 | . . . . 269 978 . Electromagnetic . | . . . . . . . Impact . | . . . . . . . Slashing . | . . . . . . . Piercing . | . . . . . . . Highest Corruption 13 | . . . . 13 5 . Average Corruption 7 | . . . . 9 3 . Corruption Purged 6 | . . . . 5 1 . Corruption Blocked . | . . . . . . . Effects 29 | . . . . 24 5 . Message Errors 6 | . . . . 5 1 . Matter Fused 7 | . . . . 5 2 . Heat Flow Errors 5 | . . . . 5 . . Energy Discharges 3 | . . . . 3 . . Data Loss (minor) 7 | . . . . 5 2 . Weapon Failures 1 | . . . . 1 . . Overload Shots . | . . . . . . . Overflow Damage 30 | . . . . 18 12 . Projectiles 18 | . . . . 6 12 . Explosions 12 | . . . . 12 . . Melee . | . . . . . . . Knockbacks 4 | . . . . 4 . . Impact . | . . . . . . . Kinetic 4 | . . . . 4 . . Secondary . | . . . . . . . Self-Inflicted Damage 258 | . . . . 249 9 . Shots 5 | . . . . 4 1 . Rammed . | . . . . . . . Targets Rammed . | . . . . . . . Kicked . | . . . . . . . Crushed . | . . . . . . . Highest Temperature 375 | 72 . . . 241 375 . Average Temperature 116 | 31 . . . 97 145 . Received Heat Transfer 851 | . . . . 86 756 9 Effects 11 | . . . . . 11 . Shutdowns 2 | . . . . . 2 . Energy Bleed 2 | . . . . . 2 . Interference 6 | . . . . . 6 . Short Circuit 1 | . . . . . 1 . Siege Activations . | . . . . . . . Martial Activations . | . . . . . . . Shielding Activations . | . . . . . . . Robots Disrupted . | . . . . . . . Combat Hostiles . | . . . . . . . Robots Corrupted . | . . . . . . . Combat Hostiles . | . . . . . . . Parts Fried . | . . . . . . . Impact Corruptions . | . . . . . . . Robots Melted . | . . . . . . . Combat Hostiles . | . . . . . . . Parts Melted 2 | . . . . 2 . . Heat Transferred 2435 | 185 . . . 900 1350 . Parts Sabotaged . | . . . . . . . Parts Stolen . | . . . . . . . Parts Stripped . | . . . . . . . Power Chain Reactions . | . . . . . . . Alert | -11 -10 -10 -8 -6 -5 -5 ------- Run | Yrd Mat Sub Scr Fac Fac Upp Maximum Alert Level 1 | . . . . . 1 . Low Security (%) 92 | 100 100 . . 100 85 . Level 1 7 | . . . . . 14 . Level 2 . | . . . . . . . Level 3 . | . . . . . . . Level 4 . | . . . . . . . Level 5 . | . . . . . . . High Security . | . . . . . . . Max Security . | . . . . . . . Peak Influence 282 | 10 . . . 168 282 . Initial 70 | . . . . . 70 . Average 69 | 1 . . . 53 90 . Influence Increases 1177 | 20 . . . 497 615 45 Destroy 0b10 Robot/C 540 | . . . . 160 380 . Destroy 0b10 Robot/NC 50 | 20 . . . 15 15 . Destroy Leader 86 | . . . . 34 52 . Successful Hack 28 | . . . . 14 14 . Disable Machine 150 | . . . . 105 45 . Destroy Structure 188 | . . . . 94 94 . Partial Spotted 30 | . . . . 30 . . Lose Combat Pursuer 105 | . . . . 45 15 45 Influence Decreases 1069 | 20 . . . 354 577 118 Entered New Map 141 | . . . . . 73 68 Time Decay 696 | 20 . . . 306 320 50 Lost Part 232 | . . . . 48 184 . Squads Dispatched 15 | . . . . 12 3 . Investigation 7 | . . . . 7 . . Extermination 4 | . . . . 2 2 . Reinforcement 4 | . . . . 3 1 . Assault . | . . . . . . . Garrison . | . . . . . . . Intercept . | . . . . . . . Searches Triggered . | . . . . . . . Construction Impeded . | . . . . . . . Haulers Reinforced 2 | . . . . 1 1 . Active Scanning Responses . | . . . . . . . Cargo Convoy Interrupts . | . . . . . . . Stealth | -11 -10 -10 -8 -6 -5 -5 --------- Run | Yrd Mat Sub Scr Fac Fac Upp Distress Signals 2 | . . . . 2 . . Communications Jammed . | . . . . . . . Distress Signals . | . . . . . . . Times Spotted 57 | . . 4 . 20 30 3 Peak Tracking Total 5 | . . 4 . 4 5 3 Tactical Retreats 7 | . . 1 . 3 1 2 Traps | -11 -10 -10 -8 -6 -5 -5 ------- Run | Yrd Mat Sub Scr Fac Fac Upp Traps Triggered 6 | . . . . 3 3 . Indirectly . | . . . . . . . Trap Hack Attempts . | . . . . . . . Triggered . | . . . . . . . Disarmed . | . . . . . . . Reprogrammed . | . . . . . . . Reused . | . . . . . . . Traps Extracted . | . . . . . . . Installed . | . . . . . . . Triggered . | . . . . . . . Machines | -11 -10 -10 -8 -6 -5 -5 ---------- Run | Yrd Mat Sub Scr Fac Fac Upp Machines Disabled 10 | . . . . 7 3 . Max in Single Turn 4 | . . . . 4 1 . Machines Repaired . | . . . . . . . Machines Dismantled . | . . . . . . . Machines Sabotaged . | . . . . . . . Overloaded Fab Kills . | . . . . . . . Hacking | -11 -10 -10 -8 -6 -5 -5 --------- Run | Yrd Mat Sub Scr Fac Fac Upp Machines Accessed 9 | . . . 1 7 1 . Terminals 3 | . . . . 2 1 . Fabricators . | . . . . . . . Repair Stations . | . . . . . . . Recycling Units 4 | . . . . 4 . . Scanalyzers . | . . . . . . . Garrison Access 1 | . . . . 1 . . Total Hacks 16 | . . . 3 11 2 . Successful 10 | . . . 3 6 1 . Failed 6 | . . . . 5 1 . Catastrophic 2 | . . . . 2 . . Database Lockouts . | . . . . . . . Manual 10 | . . . . 8 2 . Terminals 4 | . . . . 2 2 . Fabricators . | . . . . . . . Repair Stations . | . . . . . . . Recycling Units 6 | . . . . 6 . . Scanalyzers . | . . . . . . . Garrison Access 3 | . . . . 3 . . Terminal Hacks 3 | . . . 3 . . . Record 3 | . . . 3 . . . Fabricator Hacks . | . . . . . . . Repair Station Hacks . | . . . . . . . Recycling Unit Hacks . | . . . . . . . Scanalyzer . | . . . . . . . Garrison Access Hacks . | . . . . . . . Unauthorized Hacks 7 | . . . . 6 1 . Terminals 3 | . . . . 2 1 . Botnet 2 | . . . . 1 1 . Sabotage 1 | . . . . 1 . . Fabricators . | . . . . . . . Repair Stations . | . . . . . . . Recycling Units 4 | . . . . 4 . . Fedlink 4 | . . . . 4 . . Scanalyzers . | . . . . . . . Garrison Access . | . . . . . . . Data Cores Recovered . | . . . . . . . Used . | . . . . . . . Hacking Detections 4 | . . . . 3 1 . Full Trace Events . | . . . . . . . Feedback Events . | . . . . . . . Feedback Blocked . | . . . . . . . Robot Schematics Acquired . | . . . . . . . Robots Built . | . . . . . . . Authchips . | . . . . . . . Time . | . . . . . . . Total Robot Build Rating . | . . . . . . . Part Schematics Acquired . | . . . . . . . Parts Built . | . . . . . . . Authchips . | . . . . . . . Time . | . . . . . . . Total Part Build Rating . | . . . . . . . Part Studies Acquired . | . . . . . . . Parts Repaired . | . . . . . . . Time . | . . . . . . . Parts Recycled . | . . . . . . . Recycled Matter . | . . . . . . . Retrieved Matter . | . . . . . . . Retrieved Components . | . . . . . . . Parts Scanalyzed . | . . . . . . . Part Schematics Acquired . | . . . . . . . Parts Damaged . | . . . . . . . Bothacking | -11 -10 -10 -8 -6 -5 -5 ------------ Run | Yrd Mat Sub Scr Fac Fac Upp Used RIF Installer . | . . . . . . . Robots Hacked . | . . . . . . . Non-combat . | . . . . . . . Combat . | . . . . . . . Robot Hacks Applied . | . . . . . . . Relay Couplers Released . | . . . . . . . Fabnet Peak Effective % . | . . . . . . . Robots Rewired . | . . . . . . . Allies Hacked . | . . . . . . . Hacks Repelled . | . . . . . . . Allies | -11 -10 -10 -8 -6 -5 -5 -------- Run | Yrd Mat Sub Scr Fac Fac Upp Total Allies 1 | . . . . . . 1 Largest Group 1 | . . . . . . 1 Highest-Rated Group 167 | . . . . . . 167 Highest-Rated Ally 167 | . . . . . . 167 Initial UFD Resources 44 | . . . . 22 44 44 Total Orders . | . . . . . . . Ally Attacks . | . . . . . . . Total Damage . | . . . . . . . Kills . | . . . . . . . Allies Corrupted . | . . . . . . . Allies Melted . | . . . . . . . Intel | -11 -10 -10 -8 -6 -5 -5 ------- Run | Yrd Mat Sub Scr Fac Fac Upp Active Infowar (turns) 4853 | . 43 394 1898 1228 1290 . Terrain 2514 | . . . . 1224 1290 . Seismic 4792 | . 43 394 1898 1228 1229 . Robot Analysis Total . | . . . . . . . Derelict Logs Recovered 1 | . . 1 . . . . Drone Launches . | . . . . . . . Drone Recoveries . | . . . . . . . Exploration | -11 -10 -10 -8 -6 -5 -5 ------------- Run | Yrd Mat Sub Scr Fac Fac Upp Turns Passed 5316 | 142 43 394 1898 1228 1509 102 Spaces Moved 3422 | 67 28 407 1338 641 775 166 Core 417 | 9 . . . . 264 144 Treads 155 | 58 . . . 70 27 . Legs 22 | . . . . . . 22 Wheels 2828 | . 28 407 1338 571 484 . Hover . | . . . . . . . Flight . | . . . . . . . Fastest Speed 50 | 50 95 95 95 130 50 50 Average Speed 134 | 145 95 95 139 142 157 60 Slowest Speed 240 | 160 95 95 155 240 240 130 Overloaded Moves . | . . . . . . . Propulsion Burnouts . | . . . . . . . Robots Hopped . | . . . . . . . Potential Cave-ins . | . . . . . . . Cave-ins Triggered 1 | . . . . 1 . . Exploration Rate (%) 26 | 6 6 17 85 19 23 32 Regions Visited 6 Branch Regions 3 Pre-discovered Areas 1 | . . . . 1 . . Known Exits Taken 1 | . . . . . 1 . Unknown Exits Taken 5 | 1 1 1 1 1 . . Scrap Searched 8 | . . . 6 . . 2 Spaces Dug 18 | . . . . 15 3 . Terrain Destroyed 157 | . . . . 93 64 . Melee 15 | . . . . 15 . . Projectile 24 | . . . . 7 17 . AOE 118 | . . . . 71 47 . Terrain Rammed . | . . . . . . . Walls Destroyed . | . . . . . . . Machines Disabled . | . . . . . . . Actions | -11 -10 -10 -8 -6 -5 -5 --------- Run | Yrd Mat Sub Scr Fac Fac Upp Total 3920 | 87 43 410 1371 863 979 167 Wait 274 | . 14 2 . 141 117 . Move 3416 | 66 27 406 1337 640 774 166 Hop . | . . . . . . . Pick Up 35 | 4 . . 19 8 4 . Fast Attach 18 | 6 . . 3 1 7 1 Attach 23 | . 1 . . 14 8 . Detach 7 | . . . 2 2 3 . Swap 7 | . 1 . 1 3 2 . Drop 20 | . . . 9 . 11 . Fire 97 | 11 . 2 . 31 53 . Melee 15 | . . . . 15 . . Ram . | . . . . . . . Kick . | . . . . . . . Crush . | . . . . . . . Escape Stasis 8 | . . . . 8 . . Rewire . | . . . . . . . Trap . | . . . . . . . Miscellaneous . | . . . . . . . Route ------- -11/Scrapyard -10/Materials -10/Subcaves (discovered 2 exits: [*Mat] / *Scr) -8/Scraptown (discovered 2 exits: *Fac x2) -6/Factory -5/Factory -5/Upper Caves History --------- Turn | Location | Event 8 | -11/Scrapyard | Discovered new exit (range 15) 143 | -11/Scrapyard | Entered Materials 144 | -10/Materials | Met a group of wandering Federalists 183 | -10/Materials | Discovered new exit (range 5) 186 | -10/Materials | Entered Subcaves 187 | -10/Subcaves | Continued accompanying wandering Federalists (5) 317 | -10/Subcaves | Build established: Mutant 319 | -10/Subcaves | Learned Materials security intel 337 | -10/Subcaves | A swath of the cavern ceiling suddenly collapsed 383 | -10/Subcaves | Wandering Federalist uncovered a shortcut to Scraptown 521 | -10/Subcaves | Discovered new exit (range 16) 580 | -10/Subcaves | Entered Scraptown 789 | -8/Scraptown | Discovered new exit (range 13) 1245 | -8/Scraptown | Visited Red Mages 1270 | -8/Scraptown | Visited Cave Peace 1296 | -8/Scraptown | Visited Bundlers 1311 | -8/Scraptown | Visited IN-MT5's Study 1488 | -8/Scraptown | Visited CR-KLE's Repair Center 1500 | -8/Scraptown | CR-KLE repaired 5 parts 1525 | -8/Scraptown | Visited Fellowship of the Rings 1534 | -8/Scraptown | Visited Assassins FH 1558 | -8/Scraptown | Visited UFD Registry 1559 | -8/Scraptown | Registered with UFD as "Monoslicer" 1615 | -8/Scraptown | Visited Observation Area 1689 | -8/Scraptown | Visited Curators Association 1717 | -8/Scraptown | Visited Scrap Suit Storage 1725 | -8/Scraptown | Found Scrap Suit 1731 | -8/Scraptown | Found Scrap Suit 1758 | -8/Scraptown | Visited Junk Repository 1830 | -8/Scraptown | Visited Infowarlord's Domain 1868 | -8/Scraptown | Visited Analyses Database 1893 | -8/Scraptown | Visited Chapter 10 1944 | -8/Scraptown | Visited Research Penetration Think Tank 1966 | -8/Scraptown | Visited Scrapoid Research Area 2319 | -8/Scraptown | Found Exp. Terrain Scan Processor 2374 | -8/Scraptown | Met Optimus 2374 | -8/Scraptown | Accepted into 0bPrime 2470 | -8/Scraptown | Discovered new exit (range 5) 2478 | -8/Scraptown | Entered Factory 2478 | -6/Factory | Evolved 8 slots: Power x1, Propulsion x2, Utility x3, Weapon x2 2590 | -6/Factory | Loaded intel: 8 recycling unit locations 2632 | -6/Factory | Learned location of Protoforge (-2) 2769 | -6/Factory | Spotted B-75 Beast 2785 | -6/Factory | Build established: Skirmisher 2975 | -6/Factory | Crushed by falling debris 2975 | -6/Factory | System corruption reached 10% 3006 | -6/Factory | Lost 3 parts (1p1u1w) 3565 | -6/Factory | Discovered new exit (range 16) 3706 | -6/Factory | Entered another Factory area 3706 | -5/Factory | Evolved 2 slots: Utility x2 4725 | -5/Factory | Lost 3 parts (1n2w) 5046 | -5/Factory | Lost 5 parts (1p1n3u) 5082 | -5/Factory | Core integrity fell below 50% 5104 | -5/Factory | Lost 7 parts (1p3u3w) 5119 | -5/Factory | Core integrity fell below 20% 5211 | -5/Factory | Discovered new exit (range 7) 5215 | -5/Factory | Identified exit to Upper Caves 5215 | -5/Factory | Entered Upper Caves 5216 | -5/Upper Caves | Encountered a Warlord checkpoint 5317 | -5/Upper Caves | Destroyed by P-70 Sage with Tesla Rifle Last Messages --------------- 05172_ Acquired Imp. Shield Generator. 05173_ Dropped Imp. Shield Generator. 05177_ Penetrated by Slug. 05211_ EXIT=FOUND 05215_ EXIT=IDENTIFIED: UPPER CAVES LOCATION=UPPER CAVES GOAL=ESCAPE 05216_ HE-HTJ(M): "We're here to intercept Unaware patrols. Move along before you get yourself shot." 05217_ Searching scrap... 05217_ Found Imp. Titanium Leg. 05217_ Found 66 Matter. 05218_ Acquired Imp. Titanium Leg. 05219_ Acquired 66 matter. 05302_ Searching scrap... 05302_ Found Mak. Sword. 05302_ Found 65 Matter. 05303_ Acquired 9 matter. A strange signal echoes through the caves. Map ----- +----------------------------------------------------+ | ????????????????????????????????# ## #????## ## | | ???????????????????????????????## # ###### | | ???????????????????????????????# | | ????????????????????????????????# # | | ????????????????????????????????# ## | | ????????????????????????????????# ###? | | ????????????????????????????##??# ##??? | | ???????????????????????????## ### #???? | | ???????????????????????????# #???? | | ???????????????????????????# ## | | ????????????????????????????# | | ????????????????????????????#### ### | | ???????????????????????????????## ##?# | | ????????????????????????????????## ##??# | | ????????????????????????????????## #????# | | ????????????????????????????????# #?????# | | ???????????????????????????????## #?????? | | ??????????????????????????????## ##?????? | | ????????????????????####?????## #??????? | | ???????????????????## ##????# #???????? | | ???????????????????# #????# ## #???????? | | ???????????????????# # #????# ## #??????????? | | ????????????????????# ##???# ### #??????????? | | ???????????????####?### ##??# #?# #??????????? | | ??????????# #### #??## #??# #? #??????????? | | ??????????# #####@#??# #? ??????????? | | ??????? # # # ## #### #?# ??????????? | | ????????# # /% #??# ?????????? | | ???????# ## p ## #??? ?????????? | | ?????? ?????## #### #####??? ????????? | | ????????????????# ##??# #??????? ????????????? | | ???????????????# #???# #???????????????????? | | ???????????????# #???# ##???????????????????? | | ???????????????## ??? ##????????????????????? | | ????????????????##??? ###?????????????????????? | | ???????????????????? ###????????????????????????? | | ???????????????????###???????????????????????????? | | ?????????????????????????????????????????????????? | | ?????????????????????????????????????????????????? | | ?????????????????????????????????????????????????? | | ?????????????????????????????????????????????????? | | ?????????????????????????????????????????????????? | | ?????????????????????????????????????????????????? | | ?????????????????????????????????????????????????? | | ?????????????????????????????????????????????????? | | ?????????????????????????????????????????????????? | | ?????????????????????????????????????????????????? | | ?????????????????????????????????????????????????? | | ?????????????????????????????????????????????????? | | ?????????????????????????????????????????????????? | +----------------------------------------------------+ Best States ------------- Heat Dissipation 40 Energy Generation 28 Energy Capacity 490 Matter Stores 300 Matter Capacity 300 Sight Range 16 Terrain Scan Range 16 Terrain Scan Density 1010 Base Temperature (-) 100 Corruption Containment 8 Armor Coverage 600 Evasion (%) 55 Targeting Accuracy 8 Core Analysis 6 Recoil Reduction 3 Offensive Hacking 14 Item Schematics ----------------- None Robot Schematics ------------------ None Fabricated ------------ Nothing Repaired ---------- Nothing Studied --------- None Alien Tech Used ----------------- None Achievements -------------- None Challenges ------------ None Game ------ Seed PortableReactionDeflector Manual? 0 Play Time 00:34:24 Cumulative 164.5 hours Start 2026.08.18 @ 17:19:16 End 2026.08.19 @ 12:13:15 Sessions 1 Manual Loads 0 Difficulty Rogue Special Mode None Game No. 327 Rogue 327 Adventurer 0 Explorer 0 Win Type - Total 2 Types 2/0/0/0/0/0/0/0/0/0 Lore% 57 Gallery% 58 Achievement% 46 Wizard Run 0 Options --------- Layout 2 ASCII 0 Keyboard 1 Movement Arrows Keybinds 0 Fullscreen 1 Font 24/Smallcaps Map View 50x44 Zoom Use 0% Tactical HUD 1 Map Filters NONE Filters NONE Steam 1 RUN: 7a137550-e2ac-47e4-b290-d0d9d7e7abb8